[Event "*** Titled Tuesday Blitz"]
[Site "Chess.com"]
[Date "2020.04.21"]
[Round "7"]
[White "czasnaszachy"]
[Black "Teidi96"]
[Result "0-1"]
[WhiteElo "2309"]
[BlackElo "2181"]
[TimeControl "180+1"]
[EndTime "11:21:34 PDT"]
[Termination "Teidi96 won by checkmate"]

1. d4 {[%clk 0:03:00.9]} 1... d5 {[%clk 0:02:59.3]} 2. c4 {[%clk 0:03:01]} 2...
dxc4 {[%clk 0:03:00.2]} 3. e3 {[%clk 0:03:00.7]} 3... Nf6 {[%clk 0:03:00.8]} 4.
Bxc4 {[%clk 0:02:59.9]} 4... e6 {[%clk 0:03:01.3]} 5. Nf3 {[%clk 0:02:58.9]}
5... a6 {[%clk 0:03:01.8]} 6. O-O {[%clk 0:02:58.3]} 6... b5 {[%clk 0:03:02]} 7.
Bd3 {[%clk 0:02:57.9]} 7... Bb7 {[%clk 0:03:02.6]} 8. b3 {[%clk 0:02:42.7]} 8...
Nbd7 {[%clk 0:03:02.8]} 9. Bb2 {[%clk 0:02:42.4]} 9... c5 {[%clk 0:03:02.6]} 10.
Ne5 {[%clk 0:02:03.6]} 10... cxd4 {[%clk 0:02:58.1]} 11. Bxd4 {[%clk 0:01:48.3]}
11... Nxe5 {[%clk 0:02:54.5]} 12. Bxe5 {[%clk 0:01:47.3]} 12... Qd5 {[%clk
0:02:54.4]} 13. Qf3 {[%clk 0:01:06.1]} 13... Qxe5 {[%clk 0:01:32.8]} 14. Qxb7
{[%clk 0:01:04.1]} 14... Rd8 {[%clk 0:01:33.3]} 15. Qc6+ {[%clk 0:00:48.4]}
15... Ke7 {[%clk 0:01:31]} 16. Be2 {[%clk 0:00:10.3]} 16... Qxa1 {[%clk
0:01:26]} 17. Nc3 {[%clk 0:00:10.1]} 17... Qb2 {[%clk 0:01:21.2]} 18. Qc7+
{[%clk 0:00:09.3]} 18... Ke8 {[%clk 0:00:59.3]} 19. Qc6+ {[%clk 0:00:07]} 19...
Nd7 {[%clk 0:00:52.3]} 20. Rd1 {[%clk 0:00:06.7]} 20... Bb4 {[%clk 0:00:31.1]}
21. Bxb5 {[%clk 0:00:02.5]} 21... axb5 {[%clk 0:00:26.6]} 22. Nxb5 {[%clk
0:00:02.1]} 22... Qe2 {[%clk 0:00:16]} 23. Re1 {[%clk 0:00:01.6]} 23... Qxe1#
{[%clk 0:00:14.8]} 0-1

[Event "*** Titled Tuesday Blitz"]
[Site "Chess.com"]
[Date "2020.04.21"]
[Round "7"]
[White "GOGIEFF"]
[Black "Anton_Demchenko"]
[Result "0-1"]
[WhiteElo "2954"]
[BlackElo "2860"]
[TimeControl "180+1"]
[EndTime "11:21:37 PDT"]
[Termination "Anton_Demchenko won by resignation"]

1. d4 {[%clk 0:03:00.9]} 1... Nf6 {[%clk 0:03:00.3]} 2. c4 {[%clk 0:03:00.6]}
2... d6 {[%clk 0:03:00.9]} 3. Nf3 {[%clk 0:02:57]} 3... Nc6 {[%clk 0:03:00.7]}
4. d5 {[%clk 0:02:55.5]} 4... Ne5 {[%clk 0:03:00.7]} 5. Nd4 {[%clk 0:02:45.8]}
5... c5 {[%clk 0:02:52.3]} 6. dxc6 {[%clk 0:02:28.8]} 6... Nxc6 {[%clk
0:02:51.5]} 7. Nc3 {[%clk 0:02:28.7]} 7... g6 {[%clk 0:02:48.2]} 8. g3 {[%clk
0:02:28]} 8... Bg7 {[%clk 0:02:48.2]} 9. Bg2 {[%clk 0:02:28.1]} 9... Bd7 {[%clk
0:02:48]} 10. Nc2 {[%clk 0:02:27.9]} 10... O-O {[%clk 0:02:43.4]} 11. O-O {[%clk
0:02:27.9]} 11... a6 {[%clk 0:02:40.2]} 12. Rb1 {[%clk 0:02:20.4]} 12... Rb8
{[%clk 0:02:37.2]} 13. a4 {[%clk 0:02:11.4]} 13... Qa5 {[%clk 0:02:22.6]} 14.
Bd2 {[%clk 0:02:09.5]} 14... Qh5 {[%clk 0:02:22.2]} 15. b3 {[%clk 0:02:03.2]}
15... Bh3 {[%clk 0:02:18.3]} 16. e4 {[%clk 0:02:00.2]} 16... Ng4 {[%clk
0:01:27.8]} 17. f3 {[%clk 0:01:44.3]} 17... Bxg2 {[%clk 0:01:27.7]} 18. fxg4
{[%clk 0:01:40.1]} 18... Qh3 {[%clk 0:01:27.9]} 19. Rf2 {[%clk 0:01:33.9]} 19...
Bxc3 {[%clk 0:01:27.9]} 20. Rxg2 {[%clk 0:01:19.7]} 20... Bxd2 {[%clk
0:01:08.5]} 21. Rxd2 {[%clk 0:01:20.6]} 21... f5 {[%clk 0:01:09.1]} 22. exf5
{[%clk 0:01:12.5]} 22... gxf5 {[%clk 0:01:06.8]} 23. Ne3 {[%clk 0:01:04.1]}
23... f4 {[%clk 0:00:49.7]} 24. Nd5 {[%clk 0:00:53.5]} 24... fxg3 {[%clk
0:00:46.4]} 25. hxg3 {[%clk 0:00:52.2]} 25... Qxg3+ {[%clk 0:00:36.3]} 26. Rg2
{[%clk 0:00:52.1]} 26... Qh4 {[%clk 0:00:32.6]} 27. Qe1 {[%clk 0:00:23.1]} 27...
Qg5 {[%clk 0:00:32.5]} 28. Qe6+ {[%clk 0:00:19.8]} 28... Kh8 {[%clk 0:00:32.8]}
29. Re1 {[%clk 0:00:20.2]} 29... Nd4 {[%clk 0:00:27.6]} 30. Qxe7 {[%clk
0:00:06.6]} 30... Nf3+ {[%clk 0:00:27.7]} 0-1

[Event "*** Titled Tuesday Blitz"]
[Site "Chess.com"]
[Date "2020.04.21"]
[Round "7"]
[White "ahappypawn"]
[Black "eldur16"]
[Result "1/2-1/2"]
[WhiteElo "2377"]
[BlackElo "2519"]
[TimeControl "180+1"]
[EndTime "11:21:39 PDT"]
[Termination "Game drawn by agreement"]

1. d4 {[%clk 0:03:00.9]} 1... Nf6 {[%clk 0:02:58.8]} 2. c4 {[%clk 0:03:00.6]}
2... e6 {[%clk 0:02:58.4]} 3. Nc3 {[%clk 0:03:00.6]} 3... d5 {[%clk 0:02:57.7]}
4. cxd5 {[%clk 0:03:00]} 4... exd5 {[%clk 0:02:57.4]} 5. Bg5 {[%clk 0:03:00.7]}
5... Nbd7 {[%clk 0:02:56.4]} 6. e3 {[%clk 0:02:57]} 6... c6 {[%clk 0:02:55.8]}
7. Bd3 {[%clk 0:02:56.8]} 7... Be7 {[%clk 0:02:55.7]} 8. Nge2 {[%clk 0:02:55.7]}
8... O-O {[%clk 0:02:54.6]} 9. Qc2 {[%clk 0:02:52]} 9... Re8 {[%clk 0:02:53.5]}
10. O-O {[%clk 0:02:51.1]} 10... Nf8 {[%clk 0:02:53.1]} 11. Rab1 {[%clk
0:02:42.2]} 11... g6 {[%clk 0:02:50.1]} 12. b4 {[%clk 0:02:36.8]} 12... a6
{[%clk 0:02:49.8]} 13. a4 {[%clk 0:02:24.3]} 13... Ne6 {[%clk 0:02:49.4]} 14.
Bh4 {[%clk 0:02:16.2]} 14... Ng7 {[%clk 0:02:47.6]} 15. b5 {[%clk 0:02:15]}
15... axb5 {[%clk 0:02:41.7]} 16. axb5 {[%clk 0:02:15.9]} 16... Bf5 {[%clk
0:02:40.8]} 17. bxc6 {[%clk 0:02:05.3]} 17... bxc6 {[%clk 0:02:37.8]} 18. Rb7
{[%clk 0:01:49.6]} 18... Bxd3 {[%clk 0:02:32.5]} 19. Qxd3 {[%clk 0:01:50.5]}
19... Nf5 {[%clk 0:02:32.2]} 20. Bg5 {[%clk 0:01:40.1]} 20... Nd6 {[%clk
0:02:28.7]} 21. Rb3 {[%clk 0:01:35.8]} 21... Nfe4 {[%clk 0:02:23.2]} 22. Bxe7
{[%clk 0:01:32.3]} 22... Rxe7 {[%clk 0:02:20.2]} 23. f3 {[%clk 0:01:30.5]} 23...
Nxc3 {[%clk 0:02:14.9]} 24. Rxc3 {[%clk 0:01:27.6]} 24... Nc4 {[%clk 0:02:13.2]}
25. e4 {[%clk 0:01:28.2]} 25... Rea7 {[%clk 0:02:11.7]} 26. Nf4 {[%clk
0:01:19.2]} 26... Qd6 {[%clk 0:02:00.2]} 27. exd5 {[%clk 0:01:15.6]} 27... cxd5
{[%clk 0:01:47.8]} 28. Nxd5 {[%clk 0:01:09.2]} 28... Qxd5 {[%clk 0:01:43.9]} 29.
Qxc4 {[%clk 0:01:08.9]} 29... Qg5 {[%clk 0:01:28.1]} 30. Rc2 {[%clk 0:01:06.1]}
30... Qe3+ {[%clk 0:01:24.8]} 31. Kh1 {[%clk 0:01:05.6]} 31... Ra4 {[%clk
0:01:24.4]} 32. Qe2 {[%clk 0:00:51.3]} 32... Qxd4 {[%clk 0:01:23]} 33. Rd2
{[%clk 0:00:48.7]} 33... Qc3 {[%clk 0:01:16.8]} 34. Rfd1 {[%clk 0:00:47.7]}
34... h5 {[%clk 0:01:10.3]} 35. h3 {[%clk 0:00:34.5]} 35... h4 {[%clk
0:01:08.2]} 36. Qe7 {[%clk 0:00:33]} 36... Ra1 {[%clk 0:00:56.2]} 37. Rd8+
{[%clk 0:00:29.8]} 37... Rxd8 {[%clk 0:00:55.2]} 38. Qxd8+ {[%clk 0:00:28.4]}
38... Kg7 {[%clk 0:00:53.8]} 39. Rxa1 {[%clk 0:00:26.3]} 39... Qxa1+ {[%clk
0:00:53.3]} 40. Kh2 {[%clk 0:00:26.8]} 40... Qe5+ {[%clk 0:00:52.5]} 41. Kh1
{[%clk 0:00:26.1]} 41... g5 {[%clk 0:00:51.9]} 42. Qd2 {[%clk 0:00:24]} 42...
Kg6 {[%clk 0:00:50.1]} 43. Qd3+ {[%clk 0:00:23.1]} 43... Kf6 {[%clk 0:00:49.4]}
44. Qd8+ {[%clk 0:00:22.7]} 44... Kg7 {[%clk 0:00:48.5]} 45. Qd2 {[%clk
0:00:22.2]} 45... Kf6 {[%clk 0:00:46.2]} 46. Kg1 {[%clk 0:00:21.4]} 1/2-1/2

[Event "*** Titled Tuesday Blitz"]
[Site "Chess.com"]
[Date "2020.04.21"]
[Round "7"]
[White "1f3_2g41-0"]
[Black "karinachess1"]
[Result "0-1"]
[WhiteElo "2188"]
[BlackElo "2471"]
[TimeControl "180+1"]
[EndTime "11:21:39 PDT"]
[Termination "karinachess1 won by resignation"]

1. e4 {[%clk 0:03:00.9]} 1... c5 {[%clk 0:02:59.1]} 2. Nf3 {[%clk 0:03:00.4]}
2... Nc6 {[%clk 0:02:58.5]} 3. Bb5 {[%clk 0:02:59.8]} 3... e6 {[%clk 0:02:57.7]}
4. O-O {[%clk 0:02:59.3]} 4... Nge7 {[%clk 0:02:56.2]} 5. d4 {[%clk 0:02:58.3]}
5... cxd4 {[%clk 0:02:53.2]} 6. Nxd4 {[%clk 0:02:58.1]} 6... a6 {[%clk
0:02:48.5]} 7. Be2 {[%clk 0:02:54]} 7... Nxd4 {[%clk 0:02:43.7]} 8. Qxd4 {[%clk
0:02:53.3]} 8... Nc6 {[%clk 0:02:44.4]} 9. Qd1 {[%clk 0:02:47.8]} 9... Be7
{[%clk 0:02:44.2]} 10. c4 {[%clk 0:02:45.8]} 10... O-O {[%clk 0:02:43]} 11. Nc3
{[%clk 0:02:44.6]} 11... d6 {[%clk 0:02:43.4]} 12. Be3 {[%clk 0:02:44.4]} 12...
Ne5 {[%clk 0:02:39.2]} 13. f4 {[%clk 0:02:41.4]} 13... Ng6 {[%clk 0:02:39.3]}
14. Bf3 {[%clk 0:02:36.6]} 14... Bd7 {[%clk 0:02:34.3]} 15. Qb3 {[%clk
0:02:34.4]} 15... b5 {[%clk 0:02:05.9]} 16. cxb5 {[%clk 0:02:08.8]} 16... axb5
{[%clk 0:02:06.8]} 17. Nxb5 {[%clk 0:02:07.8]} 17... Rb8 {[%clk 0:01:59.8]} 18.
a4 {[%clk 0:02:06.7]} 18... Qa5 {[%clk 0:01:45.8]} 19. Be2 {[%clk 0:01:56.9]}
19... Rfc8 {[%clk 0:01:40.5]} 20. Rac1 {[%clk 0:01:53.9]} 20... Bc6 {[%clk
0:01:18.7]} 21. Bd3 {[%clk 0:01:18.6]} 21... Qa8 {[%clk 0:01:18.8]} 22. Rfe1
{[%clk 0:00:33.9]} 22... Bxe4 {[%clk 0:01:11.2]} 23. Bxe4 {[%clk 0:00:24.2]}
23... Qxe4 {[%clk 0:01:12.1]} 24. Ba7 {[%clk 0:00:14.4]} 24... Rxc1 {[%clk
0:01:10.6]} 25. Rxc1 {[%clk 0:00:15]} 25... Rf8 {[%clk 0:00:55.9]} 26. g3 {[%clk
0:00:13.8]} 26... d5 {[%clk 0:00:50]} 27. Bd4 {[%clk 0:00:13.7]} 27... e5 {[%clk
0:00:41.4]} 28. fxe5 {[%clk 0:00:13.2]} 28... Nxe5 {[%clk 0:00:42.3]} 29. Qe3
{[%clk 0:00:12.9]} 29... Nf3+ {[%clk 0:00:40.7]} 30. Kf2 {[%clk 0:00:11.7]}
30... Nxh2 {[%clk 0:00:21.6]} 31. Qxe4 {[%clk 0:00:10.9]} 31... dxe4 {[%clk
0:00:22.5]} 32. Ke3 {[%clk 0:00:11]} 32... Bg5+ {[%clk 0:00:22.3]} 33. Kxe4
{[%clk 0:00:10.3]} 33... Bxc1 {[%clk 0:00:23.2]} 0-1

[Event "*** Titled Tuesday Blitz"]
[Site "Chess.com"]
[Date "2020.04.21"]
[Round "7"]
[White "DanilNajdin"]
[Black "yoolund"]
[Result "1-0"]
[WhiteElo "2403"]
[BlackElo "2541"]
[TimeControl "180+1"]
[EndTime "11:21:40 PDT"]
[Termination "DanilNajdin won by resignation"]

1. d4 {[%clk 0:03:00.9]} 1... Nf6 {[%clk 0:02:58.8]} 2. c4 {[%clk 0:03:00.9]}
2... g6 {[%clk 0:02:59]} 3. g3 {[%clk 0:02:59.8]} 3... Bg7 {[%clk 0:02:58.8]} 4.
Bg2 {[%clk 0:03:00.4]} 4... O-O {[%clk 0:02:59.7]} 5. Nc3 {[%clk 0:03:00.9]}
5... d6 {[%clk 0:03:00.6]} 6. Nf3 {[%clk 0:03:01.3]} 6... Nc6 {[%clk 0:03:00.9]}
7. O-O {[%clk 0:03:01.8]} 7... Bf5 {[%clk 0:03:01]} 8. d5 {[%clk 0:02:56.9]}
8... Na5 {[%clk 0:03:00.7]} 9. Nd2 {[%clk 0:02:53.7]} 9... c5 {[%clk 0:02:59.9]}
10. e4 {[%clk 0:02:53.5]} 10... Bd7 {[%clk 0:02:58.6]} 11. Qc2 {[%clk
0:02:52.7]} 11... a6 {[%clk 0:02:58.4]} 12. b3 {[%clk 0:02:45]} 12... b5 {[%clk
0:02:57.6]} 13. Rb1 {[%clk 0:02:44.8]} 13... Rb8 {[%clk 0:02:56.2]} 14. Bb2
{[%clk 0:02:45.2]} 14... e5 {[%clk 0:02:55.2]} 15. Ne2 {[%clk 0:02:23.8]} 15...
Qc8 {[%clk 0:02:48.9]} 16. Nc1 {[%clk 0:02:23.5]} 16... h5 {[%clk 0:02:44.7]}
17. Nd3 {[%clk 0:02:21.4]} 17... h4 {[%clk 0:02:43.3]} 18. Bc3 {[%clk
0:02:20.4]} 18... Nb7 {[%clk 0:02:41.2]} 19. f4 {[%clk 0:02:17.2]} 19... hxg3
{[%clk 0:02:17.2]} 20. hxg3 {[%clk 0:02:17.1]} 20... Ng4 {[%clk 0:02:11.9]} 21.
Rbe1 {[%clk 0:02:08.5]} 21... f6 {[%clk 0:01:46.2]} 22. Nf3 {[%clk 0:01:58.9]}
22... Qe8 {[%clk 0:01:25.9]} 23. Nh4 {[%clk 0:01:47.2]} 23... Nd8 {[%clk
0:01:21.8]} 24. Ba5 {[%clk 0:01:39.8]} 24... Nb7 {[%clk 0:01:15.6]} 25. Bc3
{[%clk 0:01:36.7]} 25... Nd8 {[%clk 0:01:14.2]} 26. Bh3 {[%clk 0:01:35.3]} 26...
Kh7 {[%clk 0:00:51.6]} 27. f5 {[%clk 0:01:22.2]} 27... gxf5 {[%clk 0:00:50.9]}
28. Nxf5 {[%clk 0:01:20.1]} 28... Bxf5 {[%clk 0:00:49.3]} 29. Rxf5 {[%clk
0:01:18.8]} 29... Nh6 {[%clk 0:00:48.7]} 30. Qh2 {[%clk 0:01:18.2]} 30... Ndf7
{[%clk 0:00:44.1]} 31. Rh5 {[%clk 0:01:13]} 31... bxc4 {[%clk 0:00:26.9]} 32.
bxc4 {[%clk 0:01:08.7]} 32... Ng5 {[%clk 0:00:21.9]} 33. Bf5+ {[%clk 0:01:08.4]}
33... Kg8 {[%clk 0:00:22.1]} 34. Rf1 {[%clk 0:00:56.1]} 34... Qe7 {[%clk
0:00:16.4]} 35. Bd2 {[%clk 0:00:53.8]} 35... Rfe8 {[%clk 0:00:05]} 36. Bxg5
{[%clk 0:00:52.4]} 36... fxg5 {[%clk 0:00:05.9]} 37. Rxh6 {[%clk 0:00:52.8]}
37... Bxh6 {[%clk 0:00:06.1]} 38. Qxh6 {[%clk 0:00:53.2]} 38... Qg7 {[%clk
0:00:03.5]} 39. Be6+ {[%clk 0:00:52.6]} 1-0

[Event "*** Titled Tuesday Blitz"]
[Site "Chess.com"]
[Date "2020.04.21"]
[Round "7"]
[White "MisiekZielony"]
[Black "chessfrendz"]
[Result "1-0"]
[WhiteElo "2073"]
[BlackElo "2250"]
[TimeControl "180+1"]
[EndTime "11:21:40 PDT"]
[Termination "MisiekZielony won by resignation"]

1. c4 {[%clk 0:03:00]} 1... e6 {[%clk 0:02:59.3]} 2. Nc3 {[%clk 0:02:59.6]} 2...
Nf6 {[%clk 0:02:59.1]} 3. e4 {[%clk 0:02:59.4]} 3... d5 {[%clk 0:02:56.8]} 4.
cxd5 {[%clk 0:02:59]} 4... exd5 {[%clk 0:02:56.2]} 5. e5 {[%clk 0:02:59.3]} 5...
Ne4 {[%clk 0:02:56.2]} 6. Nf3 {[%clk 0:02:58.1]} 6... Nxc3 {[%clk 0:02:55.1]} 7.
dxc3 {[%clk 0:02:57.6]} 7... Be7 {[%clk 0:02:54.8]} 8. Bd3 {[%clk 0:02:57.3]}
8... O-O {[%clk 0:02:54]} 9. Qc2 {[%clk 0:02:45.3]} 9... h6 {[%clk 0:02:53.4]}
10. h3 {[%clk 0:02:42.2]} 10... c5 {[%clk 0:02:51.8]} 11. O-O {[%clk 0:02:41.3]}
11... c4 {[%clk 0:02:51.2]} 12. Bh7+ {[%clk 0:02:36.9]} 12... Kh8 {[%clk
0:02:49.9]} 13. Bf5 {[%clk 0:02:36.4]} 13... Be6 {[%clk 0:02:48.6]} 14. Nd4
{[%clk 0:02:35.3]} 14... Qd7 {[%clk 0:02:47.7]} 15. Nxe6 {[%clk 0:02:28.4]}
15... fxe6 {[%clk 0:02:46.9]} 16. Bg4 {[%clk 0:02:28.4]} 16... Bc5 {[%clk
0:02:44.2]} 17. Qg6 {[%clk 0:02:23.9]} 17... Nc6 {[%clk 0:02:36.4]} 18. Qxe6
{[%clk 0:01:47.6]} 18... Qxe6 {[%clk 0:02:32.9]} 19. Bxe6 {[%clk 0:01:46.8]}
19... Rad8 {[%clk 0:02:30.9]} 20. Be3 {[%clk 0:01:42.9]} 20... Bxe3 {[%clk
0:02:29.9]} 21. fxe3 {[%clk 0:01:42.7]} 21... Rfe8 {[%clk 0:02:29.8]} 22. Bf7
{[%clk 0:01:36.6]} 22... Rxe5 {[%clk 0:02:28.8]} 23. Rad1 {[%clk 0:01:36]} 23...
Rd7 {[%clk 0:02:20.8]} 24. Rf3 {[%clk 0:01:15.1]} 24... Kh7 {[%clk 0:02:17.1]}
25. h4 {[%clk 0:01:07.9]} 25... g6 {[%clk 0:02:15.9]} 26. Rdf1 {[%clk
0:01:00.7]} 26... Kg7 {[%clk 0:02:14.9]} 27. Rf6 {[%clk 0:00:43.9]} 27... Ne7
{[%clk 0:02:02.1]} 28. Be6 {[%clk 0:00:42.7]} 28... Nf5 {[%clk 0:01:51.5]} 29.
Bxd7 {[%clk 0:00:34.9]} 29... Kxf6 {[%clk 0:01:49.8]} 30. g4 {[%clk 0:00:34.6]}
30... Ke7 {[%clk 0:01:46.3]} 31. gxf5 {[%clk 0:00:30.5]} 31... Kxd7 {[%clk
0:01:43.2]} 32. fxg6 {[%clk 0:00:29.9]} 32... Rxe3 {[%clk 0:01:40.1]} 33. Kg2
{[%clk 0:00:28.1]} 33... Re7 {[%clk 0:01:25.9]} 34. h5 {[%clk 0:00:26.1]} 34...
Ke8 {[%clk 0:01:19.1]} 35. Rf5 {[%clk 0:00:24.2]} 35... Re2+ {[%clk 0:01:15]}
36. Kf3 {[%clk 0:00:21.8]} 36... Re7 {[%clk 0:01:10.7]} 37. Rxd5 {[%clk
0:00:21.9]} 37... Kf8 {[%clk 0:01:08]} 38. Kf4 {[%clk 0:00:21.2]} 38... Kg7
{[%clk 0:01:07.6]} 39. Re5 {[%clk 0:00:20.9]} 39... Rc7 {[%clk 0:01:04.3]} 40.
Ke4 {[%clk 0:00:21.1]} 40... Rd7 {[%clk 0:01:03.7]} 41. Rd5 {[%clk 0:00:20.9]}
41... Re7+ {[%clk 0:01:03.2]} 42. Kd4 {[%clk 0:00:20.1]} 42... Rc7 {[%clk
0:01:03]} 43. Rc5 {[%clk 0:00:20.1]} 1-0

[Event "*** Titled Tuesday Blitz"]
[Site "Chess.com"]
[Date "2020.04.21"]
[Round "7"]
[White "H3nriqueTV"]
[Black "The_Machine04"]
[Result "0-1"]
[WhiteElo "2148"]
[BlackElo "2327"]
[TimeControl "180+1"]
[EndTime "11:21:40 PDT"]
[Termination "The_Machine04 won by resignation"]

1. e4 {[%clk 0:02:57]} 1... d6 {[%clk 0:02:55.5]} 2. d4 {[%clk 0:02:55.2]} 2...
Nf6 {[%clk 0:02:50.1]} 3. Bd3 {[%clk 0:02:37.5]} 3... e5 {[%clk 0:02:46.8]} 4.
c3 {[%clk 0:02:37.9]} 4... Nbd7 {[%clk 0:02:43.1]} 5. Nf3 {[%clk 0:02:38.3]}
5... d5 {[%clk 0:02:42.3]} 6. dxe5 {[%clk 0:02:34.4]} 6... dxe4 {[%clk
0:02:36.9]} 7. exf6 {[%clk 0:02:34.6]} 7... exf3 {[%clk 0:02:36.6]} 8. fxg7
{[%clk 0:02:33.2]} 8... Bxg7 {[%clk 0:02:37.5]} 9. Qxf3 {[%clk 0:02:32.9]} 9...
Ne5 {[%clk 0:02:37.2]} 10. Bb5+ {[%clk 0:02:17.3]} 10... c6 {[%clk 0:02:37]} 11.
Qg3 {[%clk 0:02:17]} 11... O-O {[%clk 0:02:34]} 12. Be2 {[%clk 0:02:14.6]} 12...
Bf5 {[%clk 0:02:29.6]} 13. O-O {[%clk 0:02:10.6]} 13... Ng6 {[%clk 0:02:21.9]}
14. Bg5 {[%clk 0:02:08.1]} 14... Qc8 {[%clk 0:02:19.9]} 15. Nd2 {[%clk
0:02:06.4]} 15... Re8 {[%clk 0:02:18.8]} 16. Bf3 {[%clk 0:01:58.3]} 16... Be5
{[%clk 0:02:18.4]} 17. Nc4 {[%clk 0:01:47.6]} 17... Bxg3 {[%clk 0:02:16.8]} 18.
fxg3 {[%clk 0:01:44.2]} 18... Qc7 {[%clk 0:01:49.2]} 19. Rad1 {[%clk 0:01:38.8]}
19... Be6 {[%clk 0:01:43.7]} 20. Nd6 {[%clk 0:01:25.3]} 20... Red8 {[%clk
0:01:43.6]} 21. Bxd8 {[%clk 0:01:25]} 21... Rxd8 {[%clk 0:01:44.5]} 22. Ne4
{[%clk 0:01:24.2]} 22... Kg7 {[%clk 0:01:34.2]} 23. Rde1 {[%clk 0:01:21.7]}
23... Qb6+ {[%clk 0:01:30.8]} 24. Kh1 {[%clk 0:01:21.6]} 24... Qxb2 {[%clk
0:01:30.5]} 25. Rb1 {[%clk 0:01:11.9]} 25... Qxa2 {[%clk 0:01:22.8]} 26. Rxb7
{[%clk 0:01:11.3]} 26... Qa6 {[%clk 0:01:18.7]} 27. Rfb1 {[%clk 0:01:09]} 27...
Ba2 {[%clk 0:01:11.8]} 28. Nc5 {[%clk 0:00:59.3]} 28... Qa5 {[%clk 0:01:00.5]}
29. R1b2 {[%clk 0:00:28.3]} 29... Qxc5 {[%clk 0:00:56.2]} 30. Rxa2 {[%clk
0:00:27.8]} 30... Qxc3 {[%clk 0:00:56]} 31. h3 {[%clk 0:00:26.3]} 31... Ne5
{[%clk 0:00:47.9]} 32. Raxa7 {[%clk 0:00:26]} 32... Qc4 {[%clk 0:00:28.9]} 33.
Bh5 {[%clk 0:00:20.5]} 33... Qf1+ {[%clk 0:00:23.7]} 34. Kh2 {[%clk 0:00:20.9]}
34... Rd2 {[%clk 0:00:23]} 0-1

[Event "*** Titled Tuesday Blitz"]
[Site "Chess.com"]
[Date "2020.04.21"]
[Round "7"]
[White "jefferyx"]
[Black "RovenVogel"]
[Result "1-0"]
[WhiteElo "2852"]
[BlackElo "2690"]
[TimeControl "180+1"]
[EndTime "11:21:43 PDT"]
[Termination "jefferyx won by resignation"]

1. c4 {[%clk 0:03:00.9]} 1... e6 {[%clk 0:02:59.5]} 2. Nc3 {[%clk 0:03:00.6]}
2... d5 {[%clk 0:03:00.4]} 3. d4 {[%clk 0:03:01.1]} 3... Be7 {[%clk 0:03:00.3]}
4. Bf4 {[%clk 0:03:00.6]} 4... Nf6 {[%clk 0:02:59.6]} 5. e3 {[%clk 0:03:01.1]}
5... O-O {[%clk 0:02:59.3]} 6. a3 {[%clk 0:03:01.7]} 6... b6 {[%clk 0:02:53]} 7.
Nb5 {[%clk 0:02:59.9]} 7... Na6 {[%clk 0:02:48.8]} 8. Nf3 {[%clk 0:02:55.3]}
8... c6 {[%clk 0:02:47.4]} 9. Nc3 {[%clk 0:02:55.4]} 9... c5 {[%clk 0:02:44.4]}
10. cxd5 {[%clk 0:02:39.9]} 10... Nxd5 {[%clk 0:02:37.7]} 11. Nxd5 {[%clk
0:02:40.3]} 11... exd5 {[%clk 0:02:36.6]} 12. Bd3 {[%clk 0:02:38.3]} 12... Nc7
{[%clk 0:02:34.1]} 13. Qc2 {[%clk 0:02:29.3]} 13... h6 {[%clk 0:02:32.2]} 14.
O-O {[%clk 0:02:24.4]} 14... Ne6 {[%clk 0:02:31.1]} 15. Bg3 {[%clk 0:02:20.8]}
15... Bd6 {[%clk 0:02:13.8]} 16. Bh7+ {[%clk 0:02:10.9]} 16... Kh8 {[%clk
0:02:12.8]} 17. Bf5 {[%clk 0:02:11.8]} 17... Bxg3 {[%clk 0:02:01.8]} 18. hxg3
{[%clk 0:02:12.7]} 18... Qf6 {[%clk 0:01:39.6]} 19. Bxe6 {[%clk 0:01:54.6]}
19... Bxe6 {[%clk 0:01:38.5]} 20. dxc5 {[%clk 0:01:54.7]} 20... Rfc8 {[%clk
0:01:37.6]} 21. b4 {[%clk 0:01:54.1]} 21... bxc5 {[%clk 0:01:26.8]} 22. bxc5
{[%clk 0:01:55]} 22... Bf5 {[%clk 0:01:27]} 23. Qc1 {[%clk 0:01:55.6]} 23... Bd3
{[%clk 0:01:25.5]} 24. Rd1 {[%clk 0:01:55.8]} 24... Bc4 {[%clk 0:01:22.8]} 25.
e4 {[%clk 0:01:27.4]} 25... Rxc5 {[%clk 0:01:20.9]} 26. Qe3 {[%clk 0:01:24.2]}
26... Rac8 {[%clk 0:01:17.5]} 27. e5 {[%clk 0:01:24.7]} 27... Qg6 {[%clk
0:01:12]} 28. Nd4 {[%clk 0:01:25.5]} 28... Qe4 {[%clk 0:01:08.5]} 29. Re1 {[%clk
0:01:16.8]} 29... Qxe3 {[%clk 0:00:52.9]} 30. Rxe3 {[%clk 0:01:17.7]} 30... Rb8
{[%clk 0:00:53.4]} 31. e6 {[%clk 0:01:08.5]} 31... fxe6 {[%clk 0:00:53.1]} 32.
Rae1 {[%clk 0:01:08.7]} 32... Ra5 {[%clk 0:00:51]} 33. Rf3 {[%clk 0:01:06.7]}
33... Ra6 {[%clk 0:00:43.2]} 34. Rxe6 {[%clk 0:00:56.9]} 34... Rxe6 {[%clk
0:00:42]} 35. Nxe6 {[%clk 0:00:57.8]} 35... Rb1+ {[%clk 0:00:39.3]} 36. Kh2
{[%clk 0:00:58.2]} 36... Re1 {[%clk 0:00:38.9]} 37. Rf8+ {[%clk 0:00:52.8]}
37... Kh7 {[%clk 0:00:38.3]} 38. Re8 {[%clk 0:00:53.7]} 38... Re2 {[%clk
0:00:34.2]} 39. f3 {[%clk 0:00:53.9]} 39... d4 {[%clk 0:00:27.4]} 40. Nf8+
{[%clk 0:00:54.3]} 40... Kg8 {[%clk 0:00:24.3]} 41. Rc8 {[%clk 0:00:55.2]} 41...
d3 {[%clk 0:00:15.5]} 42. Nd7+ {[%clk 0:00:50.6]} 42... Kf7 {[%clk 0:00:10]} 43.
Rxc4 {[%clk 0:00:51.5]} 43... Ke6 {[%clk 0:00:10.1]} 44. Rd4 {[%clk 0:00:49.6]}
1-0